bitfinex-derivatives/quotes_BTCF0:USTF0_20251009
["timestamp","ask_amount","ask_price","bid_price","bid_amount"]
[1760017576593,0.5646082,122980.0,122970.0,0.3608]
[1760017576800,2.15117363,122980.0,122950.0,0.3608]
[1760017576999,0.3608,122960.0,122930.0,0.6860982]
[1760017577199,0.3608,122960.0,122940.0,0.3608]
[1760017577200,1.6850882,122960.0,122940.0,0.3608]
[1760017577501,1.6850882,122960.0,122930.0,1.22293307]
[1760017577701,1.39048,122960.0,122930.0,1.22293307]
[1760017578103,1.6850882,122960.0,122930.0,0.81611307]
[1760017578305,0.9254082,122960.0,122930.0,0.81611307]
[1760017578504,0.75952,122950.0,122930.0,0.81611307]
[1760017578706,1.03952,122950.0,122930.0,0.81611307]
[1760017579505,0.5746082,122950.0,122930.0,0.3608]
[1760017579704,0.70540819,122940.0,122900.0,0.3608]
[1760017580004,0.2946082,122910.0,122900.0,0.45531307]
[1760017580205,0.32802093,122910.0,122900.0,0.45531307]
[1760017580409,1.38242913,122910.0,122890.0,0.3608]
[1760017580606,1.74322913,122910.0,122890.0,0.3608]
[1760017581196,0.98342913,122910.0,122890.0,0.3608]
[1760017581397,0.75984,122900.0,122890.0,0.3608]
[1760017581596,1.05984,122900.0,122890.0,0.3608]
[1760017582198,1.05972,122900.0,122890.0,0.3457712]
[1760017582395,1.05972,122900.0,122880.0,0.3457712]
[1760017582396,0.5946082,122900.0,122880.0,0.3457712]
[1760017582598,0.2946082,122890.0,122870.0,0.3608]
[1760017582803,0.2946082,122880.0,122870.0,0.3608]
[1760017582999,1.3244882,122880.0,122860.0,0.3608826]
[1760017583203,0.2946082,122870.0,122860.0,8.26e-05]
[1760017583500,1.3744882,122870.0,122860.0,8.26e-05]
[1760017584006,1.85107443,122870.0,122860.0,8.26e-05]
[1760017584206,1.49119443,122870.0,122860.0,8.26e-05]
[1760017584406,2.25091443,122870.0,122840.0,0.3608]
[1760017584605,0.2946082,122860.0,122840.0,0.81611307]
[1760017584798,0.3,122860.0,122850.0,1.11072127]
[1760017585004,0.3,122860.0,122850.0,1.54823127]
[1760017585308,0.30007266,122860.0,122850.0,1.54823127]
[1760017586106,0.30007266,122860.0,122850.0,1.94823127]
[1760017586606,0.2946082,122900.0,122870.0,0.40682]
[1760017586802,1.3750882,122900.0,122880.0,0.88049719]
[1760017587003,0.32,122900.0,122880.0,0.88049719]
[1760017587210,0.32,122900.0,122890.0,0.3608]
[1760017587505,0.32,122900.0,122890.0,0.350584]
[1760017587708,1.08144,122900.0,122890.0,0.350584]
[1760017588008,1.3760082,122900.0,122880.0,0.3608]
[1760017588306,0.321,122900.0,122880.0,0.88049719]
[1760017588511,0.6554082,122890.0,122860.0,0.3608]
[1760017588707,0.76024,122880.0,122870.0,0.51969719]
[1760017588897,0.29,122880.0,122870.0,0.51969719]
[1760017589103,0.29,122880.0,122870.0,1.17510539]
[1760017589310,0.29,122880.0,122870.0,1.60579539]
[1760017590398,0.38307123,122920.0,122890.0,0.03069]
[1760017590602,0.05227123,122920.0,122900.0,0.76762]
[1760017590807,0.33227123,122920.0,122900.0,0.76762]
[1760017591003,0.76084,122910.0,122890.0,0.39149]
[1760017591202,1.07084,122910.0,122900.0,0.40682]
[1760017591608,1.07084,122910.0,122890.0,0.3608]
[1760017591805,1.13672185,122910.0,122900.0,0.40682]
[1760017592002,0.37588185,122910.0,122900.0,0.40682]
[1760017592201,0.37688185,122910.0,122900.0,0.3608]
[1760017592409,0.37688185,122910.0,122890.0,0.39149]
[1760017592410,1.13748185,122910.0,122890.0,0.39149]
[1760017592696,1.13748185,122910.0,122900.0,0.40682]
[1760017593106,0.37688185,122910.0,122890.0,0.39149]
[1760017593306,0.38513371,122910.0,122900.0,0.40682]
[1760017593507,1.14645371,122910.0,122900.0,0.40682]
[1760017593706,1.14645371,122910.0,122890.0,0.39149]
[1760017593907,1.14645371,122910.0,122900.0,0.40682]
[1760017594211,0.38613371,122910.0,122900.0,0.40682]
[1760017594406,2.20166191,122910.0,122880.0,0.3608]
[1760017594612,0.2946082,122900.0,122880.0,0.76762]
[1760017594913,0.5646082,122900.0,122880.0,0.76762]
[1760017595213,0.6554082,122890.0,122870.0,0.3608]
[1760017595414,1.0548482,122880.0,122870.0,0.3608]
[1760017595711,1.3250482,122880.0,122870.0,0.3608]
[1760017596011,1.03044,122880.0,122870.0,0.3608]
[1760017596207,1.0304,122880.0,122870.0,0.3608]
[1760017596402,1.03032,122880.0,122870.0,0.3608]
[1760017596805,0.27,122880.0,122870.0,1.0929182]
[1760017597009,0.27,122880.0,122870.0,1.4929182]
[1760017598810,0.27,122880.0,122870.0,1.19831]
[1760017599114,0.27,122880.0,122870.0,1.4929182]
[1760017599413,0.271,122880.0,122870.0,1.4929182]
[1760017600507,0.271,122880.0,122870.0,2.2527182]
[1760017600907,0.271,122880.0,122870.0,1.95807]
[1760017601113,0.271,122880.0,122870.0,2.2526782]
[1760017601908,0.27,122880.0,122870.0,2.2527182]
[1760017602109,0.271,122880.0,122870.0,1.4929182]
[1760017602314,0.271,122880.0,122870.0,1.8525182]
[1760017602614,0.271,122880.0,122870.0,0.76762]
[1760017602909,1.3264082,122880.0,122860.0,0.3608]
[1760017603112,0.6318,122880.0,122870.0,0.40682]
[1760017603616,1.6862482,122880.0,122860.0,0.3608]
[1760017603814,1.34413932,122880.0,122870.0,0.40682]
[1760017604012,1.03084,122880.0,122870.0,0.40682]
[1760017604316,1.41034529,122880.0,122850.0,0.6860982]
[1760017604616,1.41034529,122880.0,122870.0,0.40682]
[1760017604913,0.28970529,122880.0,122870.0,0.76762]
[1760017605109,0.271,122880.0,122870.0,1.0957282]
[1760017605410,0.271,122880.0,122870.0,1.4565282]
[1760017607311,0.28974468,122880.0,122870.0,1.4565282]
[1760017607508,0.28974468,122880.0,122870.0,1.8565282]
[1760017608319,0.28974468,122880.0,122870.0,1.12842]
[1760017609124,0.28974468,122880.0,122860.0,0.6889082]
[1760017609125,0.271,122880.0,122860.0,0.6889082]
[1760017609316,0.28975801,122880.0,122870.0,0.40682]
[1760017609520,1.70492621,122880.0,122860.0,0.3608]
[1760017610018,0.94516621,122880.0,122860.0,0.3608]
[1760017610220,1.41035801,122880.0,122860.0,0.3608]
[1760017610414,0.6554082,122870.0,122830.0,0.3608]
[1760017610720,0.6554082,122860.0,122830.0,0.76762]
[1760017610918,1.0551682,122850.0,122830.0,0.3608]
[1760017611118,1.07056,122850.0,122830.0,0.3608]
[1760017611319,1.3651682,122850.0,122830.0,0.3608]
[1760017611521,0.2946082,122840.0,122830.0,0.3608]
[1760017611719,1.3352082,122840.0,122830.0,0.3608]
[1760017612110,1.7352082,122840.0,122830.0,0.3608]
[1760017612311,1.3354082,122840.0,122810.0,0.3943]
[1760017612514,0.9354082,122840.0,122810.0,0.3943]
[1760017612713,0.2946082,122820.0,122810.0,0.3608]
[1760017612921,0.6046082,122820.0,122810.0,0.3608]
[1760017613718,0.6046082,122820.0,122800.0,0.3608]
[1760017613924,0.6046082,122820.0,122800.0,0.721025]
[1760017614615,0.31,122820.0,122800.0,0.721025]
[1760017614817,0.31,122820.0,122810.0,0.721025]
[1760017615015,1.07068,122820.0,122810.0,0.721025]
[1760017615422,1.07068,122820.0,122800.0,0.3608]
[1760017615724,0.6056082,122820.0,122810.0,0.360225]
[1760017615919,0.6056082,122820.0,122800.0,0.721025]
[1760017616121,1.07971442,122820.0,122800.0,0.721025]
[1760017617021,0.31899442,122820.0,122800.0,0.721025]
[1760017617221,0.31899442,122820.0,122800.0,0.754525]
[1760017617520,1.07947442,122820.0,122800.0,0.754525]
[1760017617920,0.311,122820.0,122810.0,1.01873845]
[1760017618425,0.311,122820.0,122810.0,0.721025]
[1760017618818,0.311,122820.0,122810.0,0.3608]
[1760017619020,2.09681345,122820.0,122780.0,0.39437489]
[1760017619232,0.62501345,122810.0,122800.0,0.360225]
[1760017619421,0.89501345,122810.0,122800.0,0.360225]
[1760017619726,0.6308,122810.0,122780.0,0.39437489]
[1760017619917,0.27,122810.0,122800.0,0.754525]
[1760017620422,0.27,122810.0,122800.0,1.41873845]
[1760017620630,0.27,122810.0,122800.0,2.17965845]
[1760017621123,0.47698735,122850.0,122800.0,2.17965845]
[1760017621124,0.3608,122850.0,122840.0,0.0335]
[1760017621324,0.3608,122850.0,122840.0,0.754525]
[1760017621325,0.27,122850.0,122840.0,0.754525]
[1760017621526,0.27,122850.0,122840.0,0.721025]
[1760017622020,0.27,122850.0,122840.0,0.754525]
[1760017623223,0.271,122850.0,122840.0,0.721025]
[1760017623622,0.271,122850.0,122840.0,0.360225]
[1760017623623,0.53621345,122850.0,122840.0,0.360225]
[1760017623929,1.29801345,122850.0,122820.0,0.3608]
[1760017624118,0.26421345,122830.0,122810.0,0.3608]
[1760017624324,0.76128,122820.0,122810.0,0.3608]
[1760017624522,1.10003112,122820.0,122810.0,0.3608]
[1760017624917,1.10007112,122820.0,122810.0,0.3608]
[1760017625325,1.09999112,122820.0,122810.0,0.3608]
[1760017626629,1.10099112,122820.0,122810.0,0.721025]
[1760017626828,1.10099112,122820.0,122810.0,0.360225]
[1760017627028,0.70255112,122820.0,122810.0,0.360225]
[1760017627237,1.10263112,122820.0,122810.0,0.360225]
[1760017627431,1.36676457,122820.0,122790.0,0.3943]
[1760017627629,0.33875112,122820.0,122800.0,0.360225]
[1760017627933,0.76076,122810.0,122800.0,0.360225]
[1760017628133,1.09951112,122810.0,122800.0,0.360225]
[1760017629330,1.74497345,122810.0,122790.0,0.3608]
[1760017629545,0.26421345,122800.0,122790.0,0.360225]
[1760017629734,1.34469345,122800.0,122790.0,0.360225]
[1760017630127,0.32,122800.0,122790.0,0.360225]
[1760017630332,1.08048,122800.0,122790.0,0.360225]
[1760017630532,1.08052,122800.0,122790.0,0.360225]
[1760017630729,0.32,122800.0,122790.0,0.360225]
[1760017630925,1.08036,122800.0,122790.0,0.360225]
[1760017631936,0.32,122800.0,122790.0,0.360225]
[1760017632234,0.32,122800.0,122780.0,0.36087489]
[1760017632235,1.4137022,122800.0,122780.0,7.489e-05]
[1760017632434,1.12112,122790.0,122780.0,7.489e-05]
[1760017632647,1.84116,122790.0,122780.0,7.489e-05]
[1760017632828,1.0808,122790.0,122780.0,7.489e-05]
[1760017633229,1.84104,122790.0,122780.0,7.489e-05]
[1760017633436,1.0808,122790.0,122750.0,0.00539]
[1760017633631,0.26421345,122760.0,122750.0,0.00539]
[1760017633832,1.71365786,122760.0,122750.0,0.00539]
[1760017634432,1.71374859,122760.0,122750.0,0.00539]
[1760017634632,1.35294859,122760.0,122750.0,0.00539]
[1760017635238,1.35286859,122760.0,122750.0,0.00539]
[1760017635429,0.59266859,122760.0,122750.0,0.365615]
[1760017635633,0.32845514,122760.0,122750.0,0.760045]
[1760017635835,1.08841514,122760.0,122750.0,0.726415]
[1760017636137,0.32945514,122760.0,122750.0,0.726415]
[1760017636326,1.08949514,122760.0,122740.0,0.3608]
[1760017636532,1.02429345,122750.0,122740.0,0.3608]
[1760017636837,1.34429345,122750.0,122730.0,0.3608]
[1760017637036,6.544e-05,122740.0,122730.0,0.3608]
[1760017637334,1.04018544,122740.0,122730.0,0.3608]
[1760017637635,1.04018544,122740.0,122730.0,0.6739886]
[1760017638230,1.04006544,122740.0,122730.0,0.3131886]
[1760017638437,0.64086544,122740.0,122730.0,0.3131886]
[1760017638738,1.04002544,122740.0,122730.0,0.3131886]
[1760017638933,0.28006544,122740.0,122730.0,0.3131886]
[1760017639241,1.04086544,122740.0,122710.0,0.3608]
[1760017639437,0.26421345,122730.0,122710.0,0.6597704]
[1760017639742,0.76015133,122720.0,122710.0,0.3608]
[1760017640034,0.28007133,122720.0,122710.0,0.39443]
[1760017640339,1.04027133,122720.0,122710.0,0.79443]
[1760017640536,0.28007133,122720.0,122710.0,1.0944004]
[1760017640736,0.28007133,122720.0,122710.0,0.6607704]
[1760017641036,0.54428478,122720.0,122710.0,0.001]
[1760017641332,0.28007133,122720.0,122710.0,1e-07]
[1760017641537,1.04083133,122720.0,122710.0,0.6597705]
[1760017641735,0.28007133,122720.0,122710.0,0.6597705]
[1760017642243,0.28107133,122720.0,122710.0,0.6597705]
[1760017642534,1.04179133,122720.0,122710.0,0.6597704]
[1760017642734,0.28007133,122720.0,122710.0,0.6597704]
[1760017642936,0.28007133,122720.0,122710.0,0.6950904]
[1760017643137,0.28007133,122720.0,122710.0,1.0950904]
[1760017643336,0.28107133,122720.0,122710.0,1.0950904]
[1760017644041,0.28207133,122720.0,122710.0,1.35930385]
[1760017644643,0.28207133,122720.0,122710.0,1.44076415]
[1760017644837,0.00836441,122760.0,122750.0,0.03532]
[1760017645138,0.31,122760.0,122750.0,0.41301907]
[1760017646137,0.31,122760.0,122740.0,0.3608]
[1760017646138,0.58338213,122760.0,122740.0,0.3608]
[1760017646337,0.58338213,122760.0,122750.0,0.01689907]
[1760017646640,1.07988868,122760.0,122750.0,0.37769907]
[1760017646831,1.08188868,122760.0,122750.0,0.3608]
[1760017647036,1.34606213,122760.0,122740.0,0.3608]
[1760017647236,0.58538213,122760.0,122750.0,0.37769907]
[1760017647432,0.313,122760.0,122750.0,0.41301907]
[1760017647831,0.313,122760.0,122750.0,1.13104252]
[1760017648052,0.313,122760.0,122750.0,1.87470345]
[1760017648337,0.29610093,122760.0,122750.0,1.87470345]
[1760017648538,0.00658626,122760.0,122750.0,1.95681715]
[1760017648839,0.00658626,122760.0,122750.0,1.90300715]
[1760017649143,0.00658626,122760.0,122750.0,1.06033345]
[1760017649440,0.00558626,122760.0,122750.0,1.06033345]
[1760017649639,0.00558626,122760.0,122750.0,1.5572]
[1760017649836,0.00458626,122760.0,122750.0,1.82141345]
[1760017650035,0.00458626,122760.0,122750.0,1.06033345]
[1760017650235,0.00458626,122760.0,122750.0,1.42141345]
[1760017650431,0.00458626,122760.0,122750.0,0.66033345]
[1760017650840,0.00458626,122760.0,122750.0,1.42129345]
[1760017651148,0.00458626,122760.0,122750.0,0.66033345]
[1760017651442,0.00458626,122760.0,122750.0,1.42113345]
[1760017651934,0.00458626,122760.0,122750.0,1.15692]
[1760017652135,0.00458626,122760.0,122750.0,1.14176725]
[1760017652331,0.03027709,122800.0,122790.0,0.03532]
[1760017652535,0.05027709,122800.0,122790.0,0.75692]
[1760017653439,0.05227709,122800.0,122790.0,0.75692]
[1760017653641,0.05227709,122800.0,122790.0,0.39612]
[1760017654039,0.45227709,122800.0,122790.0,0.3608]
[1760017654439,0.05227709,122800.0,122790.0,0.66033345]
[1760017654636,0.05327709,122800.0,122790.0,1.42185345]
[1760017654838,0.023,122800.0,122790.0,1.06033345]
[1760017655547,0.023,122800.0,122790.0,1.82189345]
[1760017655747,0.021,122800.0,122790.0,1.06033345]
[1760017655942,0.022,122800.0,122790.0,1.82185345]
[1760017656345,0.021,122800.0,122790.0,1.82185345]
[1760017656548,0.021,122800.0,122790.0,1.06033345]
[1760017656737,0.021,122800.0,122790.0,1.82157345]
[1760017656942,0.021,122800.0,122790.0,1.06033345]
[1760017657145,0.021,122800.0,122790.0,1.82153345]
[1760017657647,0.021,122800.0,122790.0,1.14174065]
[1760017657836,2.45264598,122880.0,122810.0,0.03532]
[1760017658040,3.50283066,122880.0,122850.0,0.39612]
[1760017658254,0.50920478,122880.0,122860.0,0.03532]
[1760017658451,0.0906788,122880.0,122860.0,0.39612]
[1760017658844,0.0906788,122880.0,122870.0,0.03532]
[1760017658845,0.02686946,122880.0,122870.0,0.03532]
[1760017659149,0.02686946,122880.0,122860.0,0.03532]
[1760017659150,0.79266946,122880.0,122860.0,0.03532]
[1760017659448,0.42986946,122880.0,122860.0,0.03532]
[1760017659645,0.79166946,122880.0,122860.0,0.03532]
[1760017659847,1.05488291,122880.0,122850.0,0.39612]
[1760017660048,0.65488291,122880.0,122850.0,0.39612]
[1760017661449,0.65488291,122880.0,122860.0,0.03581]
[1760017662249,0.63515504,122880.0,122860.0,0.03581]
[1760017662463,0.65283745,122880.0,122860.0,0.03581]
[1760017662648,0.65483745,122880.0,122860.0,0.03581]
[1760017663658,0.65483745,122880.0,122860.0,0.39661]
[1760017663850,0.65483745,122880.0,122860.0,0.03581]
[1760017664047,1.05399745,122880.0,122860.0,0.03581]
[1760017664249,0.37194159,122880.0,122870.0,0.03581]
[1760017664759,0.01114159,122880.0,122870.0,0.39661]
[1760017664954,0.003,122880.0,122870.0,0.39661]
[1760017665352,0.001,122880.0,122870.0,0.39661]
[1760017665547,0.002,122880.0,122870.0,0.39661]
[1760017665753,0.003,122880.0,122870.0,0.39661]
[1760017666257,0.003,122880.0,122870.0,0.66082345]
[1760017666451,0.003,122880.0,122870.0,1.11653345]
[1760017666650,0.003,122880.0,122870.0,1.87601345]
[1760017667156,0.003,122880.0,122870.0,1.11653345]
[1760017667543,0.002,122880.0,122870.0,1.87625345]
[1760017667743,0.001,122880.0,122870.0,1.11653345]
[1760017668152,0.001,122880.0,122870.0,1.87613345]
[1760017668650,0.001,122880.0,122870.0,1.11653345]
[1760017668847,0.001,122880.0,122870.0,1.87613345]
[1760017669154,0.001,122880.0,122870.0,1.11653345]
[1760017669352,0.001,122880.0,122870.0,0.85232]
[1760017669553,0.001,122880.0,122870.0,1.87597345]
[1760017670156,0.001,122880.0,122870.0,0.71653345]
[1760017670552,0.001,122880.0,122870.0,1.47585345]
[1760017670750,0.001,122880.0,122870.0,1.11505345]
[1760017671054,0.001,122880.0,122870.0,1.07733345]
[1760017671247,0.001,122880.0,122870.0,1.83649345]
[1760017672150,0.001,122880.0,122870.0,1.07733345]
[1760017672951,0.001,122880.0,122870.0,1.83597345]
[1760017673153,0.001,122880.0,122870.0,1.07733345]
[1760017673354,0.001,122880.0,122870.0,1.83589345]
[1760017673554,0.001,122880.0,122870.0,1.07733345]
[1760017673759,0.001,122880.0,122870.0,1.47733345]
[1760017673948,0.001,122880.0,122870.0,2.23569345]
[1760017674150,0.001,122880.0,122870.0,1.47733345]
[1760017674354,0.001,122880.0,122870.0,2.23561345]
[1760017674751,0.001,122880.0,122870.0,1.47733345]
[1760017675148,0.001,122880.0,122870.0,0.75741]
[1760017675856,0.001,122880.0,122870.0,1.51585]
[1760017676059,0.001,122880.0,122870.0,0.81487]
[1760017676557,0.001,122880.0,122870.0,1.47908345]
[1760017677066,0.001,122880.0,122870.0,2.23756345]
[1760017677258,0.001,122880.0,122870.0,1.47908345]
[1760017677654,0.001,122880.0,122870.0,1.02162345]
[1760017677854,0.001,122880.0,122870.0,1.51573]
[1760017678058,0.001,122880.0,122870.0,1.81086047]
[1760017678554,0.001,122880.0,122870.0,1.05254047]
[1760017678755,0.001,122880.0,122870.0,1.81082047]
[1760017680359,0.001,122880.0,122870.0,1.05254047]
[1760017680561,0.001,122880.0,122870.0,1.81050047]
[1760017680756,0.001,122880.0,122870.0,1.05254047]
[1760017680960,0.001,122880.0,122870.0,1.45254047]
[1760017681461,0.001,122880.0,122870.0,1.53389467]
[1760017681661,0.001,122880.0,122870.0,2.29209467]
[1760017681862,0.001,122880.0,122870.0,1.45254047]
[1760017682463,0.001,122880.0,122870.0,2.21066047]
[1760017682863,0.001,122880.0,122870.0,1.45254047]
[1760017683160,0.001,122880.0,122870.0,2.21050047]
[1760017683355,0.001,122880.0,122870.0,1.45254047]
[1760017683658,0.001,122880.0,122870.0,1.15741]
[1760017683855,0.001,122880.0,122870.0,1.05254047]
[1760017684074,0.001,122880.0,122870.0,0.75741]
[1760017684261,0.001,122880.0,122870.0,1.05254047]
[1760017684660,0.001,122880.0,122870.0,0.75741]
[1760017684861,0.001,122880.0,122870.0,1.51521]
[1760017685059,0.001,122880.0,122870.0,1.05254047]
[1760017685659,0.001,122880.0,122870.0,2.21042047]
[1760017685866,0.001,122880.0,122870.0,1.45254047]
[1760017686368,0.001,122880.0,122870.0,1.81058047]
[1760017686562,0.001,122880.0,122870.0,1.05254047]
[1760017686756,0.001,122880.0,122870.0,1.81058047]
[1760017687163,0.001,122880.0,122870.0,2.21058047]
[1760017688367,0.001,122880.0,122870.0,1.45254047]
[1760017688768,0.001,122880.0,122870.0,2.21026047]
[1760017688970,0.001,122880.0,122870.0,1.05254047]
[1760017689191,0.001,122880.0,122870.0,1.81030047]
[1760017689670,0.001,122880.0,122870.0,1.81026047]
[1760017690170,0.001,122880.0,122870.0,1.05254047]
[1760017690572,0.001,122880.0,122870.0,2.21018047]
[1760017690767,0.001,122880.0,122870.0,1.53389467]
[1760017690973,0.001,122880.0,122870.0,2.29165467]
[1760017691173,0.001,122880.0,122870.0,2.21030047]
[1760017692566,0.001,122880.0,122870.0,1.45254047]
[1760017692870,0.00833164,122930.0,122870.0,1.45254047]
[1760017693067,0.73846413,122940.0,122920.0,0.39568]
[1760017693670,0.45141575,122940.0,122920.0,0.39568]
[1760017693870,0.74654622,122940.0,122920.0,0.39568]
[1760017694073,0.45141575,122940.0,122930.0,0.03488]
[1760017694372,0.02688308,122940.0,122930.0,0.69081047]
[1760017694870,0.02788308,122940.0,122930.0,0.39568]
[1760017695071,0.01980099,122940.0,122930.0,0.69081047]
[1760017695272,0.01980099,122940.0,122930.0,0.74434047]
[1760017696274,0.01880099,122940.0,122930.0,0.74434047]
[1760017696472,0.01980099,122940.0,122930.0,1.50178047]
[1760017696771,0.01980099,122940.0,122930.0,0.44921]
[1760017696969,0.01980099,122940.0,122930.0,1.50198047]
[1760017697470,0.41880099,122940.0,122930.0,0.39568]
[1760017697870,0.01880099,122940.0,122930.0,0.74434047]
[1760017698069,0.01880099,122940.0,122930.0,1.50250047]
[1760017698265,0.71393146,122940.0,122930.0,0.3608]
[1760017698466,0.71393146,122940.0,122920.0,0.39568]
[1760017698467,1.07473146,122940.0,122920.0,0.39568]
[1760017698668,0.01980099,122940.0,122930.0,0.33001047]
[1760017698964,0.01980099,122940.0,122930.0,0.39568]
[1760017699276,0.01980099,122940.0,122930.0,0.03488]
[1760017699774,0.02080099,122940.0,122930.0,0.03488]
[1760017700275,1.07773146,122940.0,122920.0,0.39568]
[1760017700484,0.69513047,122930.0,122920.0,0.3608]
[1760017700776,0.41880099,122930.0,122920.0,0.3608]
[1760017700972,1.07473146,122930.0,122910.0,0.39568]
[1760017701169,0.69513047,122920.0,122900.0,0.39568]
[1760017701375,0.67473146,122920.0,122900.0,0.39568]
[1760017701574,1.07473146,122920.0,122900.0,0.39568]
[1760017702176,0.77960099,122920.0,122910.0,0.03488]
[1760017702374,0.41980099,122920.0,122910.0,0.03488]
[1760017702573,0.01980099,122920.0,122910.0,0.03488]
[1760017703069,0.38060099,122920.0,122900.0,0.39568]
[1760017703268,0.78060099,122920.0,122900.0,0.39568]
[1760017703974,1.07673146,122920.0,122900.0,0.39568]
[1760017704278,0.78160099,122920.0,122900.0,0.39568]
[1760017704578,1.07673146,122920.0,122900.0,0.39568]
[1760017704781,0.78160099,122920.0,122910.0,0.03488]
[1760017704977,0.78060099,122920.0,122910.0,0.03488]
[1760017705178,1.14068099,122920.0,122910.0,0.03488]
[1760017705373,1.54068099,122920.0,122900.0,0.3608]
[1760017705577,1.41485047,122910.0,122890.0,0.39568]
[1760017705779,1.43365146,122910.0,122890.0,0.39568]
[1760017706277,0.67473146,122910.0,122890.0,0.39568]
[1760017706481,1.43381146,122910.0,122890.0,0.39568]
[1760017706682,1.43369146,122910.0,122890.0,0.39568]
[1760017707179,1.43365146,122910.0,122890.0,0.39568]
[1760017707373,0.37960099,122910.0,122890.0,0.39568]
[1760017707579,0.01980099,122910.0,122900.0,0.03488]
[1760017707781,1.17852099,122910.0,122900.0,0.03488]
[1760017707979,0.77852099,122910.0,122900.0,0.03488]
[1760017708678,0.77852099,122910.0,122890.0,0.39568]
[1760017708880,1.07573146,122910.0,122890.0,0.39568]
[1760017709389,1.83409146,122910.0,122890.0,0.39568]
[1760017710181,1.07573146,122910.0,122890.0,0.39568]
[1760017710481,1.83389146,122910.0,122890.0,0.39568]
[1760017710677,0.29513047,122900.0,122890.0,0.3608]
[1760017710877,0.31393146,122900.0,122890.0,0.3608]
[1760017711074,1.47197146,122900.0,122890.0,0.3608]
[1760017711279,1.47189146,122900.0,122890.0,0.3608]
[1760017711681,0.71493146,122900.0,122890.0,0.3608]
[1760017711877,0.69613047,122900.0,122890.0,0.3608]
[1760017712185,1.81485047,122900.0,122880.0,0.39568]
[1760017712482,0.65693047,122900.0,122880.0,0.39568]
[1760017712684,1.41485047,122900.0,122880.0,0.39568]
[1760017712987,0.65693047,122900.0,122880.0,0.39568]
[1760017713487,0.75768,122890.0,122880.0,0.39568]
[1760017714290,0.69513047,122890.0,122880.0,0.3608]
[1760017714492,0.69513047,122890.0,122870.0,0.41925607]
[1760017714693,1.45257047,122880.0,122870.0,0.3608]
[1760017714988,1.41337047,122880.0,122860.0,0.45413607]
[1760017715192,1.05361047,122870.0,122850.0,0.52710354]
[1760017715380,1.05361047,122870.0,122850.0,0.4542246]
[1760017715887,1.05361047,122870.0,122850.0,0.39576853]
[1760017716081,0.29513047,122870.0,122850.0,0.39576853]
[1760017716281,0.29513047,122860.0,122850.0,0.36088853]
[1760017716791,0.3608,122880.0,122860.0,0.03488]
[1760017717004,0.29513047,122890.0,122880.0,0.03488]
[1760017717386,1.05361047,122890.0,122880.0,0.03488]
[1760017717583,0.29513047,122890.0,122880.0,0.03488]
[1760017717886,0.29513047,122890.0,122870.0,0.39568]
[1760017718087,0.75848,122880.0,122870.0,0.39568]
[1760017718288,1.42241768,122880.0,122860.0,0.45413607]
[1760017718481,0.29513047,122870.0,122860.0,0.45413607]
[1760017719790,1.12828721,122880.0,122870.0,0.0334]
[1760017719791,0.00912721,122880.0,122870.0,0.0334]
[1760017720094,0.00912721,122880.0,122870.0,0.3942]
[1760017720295,0.00912721,122880.0,122870.0,0.0334]
[1760017720490,0.76744721,122880.0,122870.0,0.3942]
[1760017720690,0.00912721,122880.0,122870.0,0.3942]
[1760017720890,1.06257768,122880.0,122870.0,0.3942]
[1760017721290,0.30425768,122880.0,122870.0,0.0334]
[1760017721491,0.30425768,122880.0,122860.0,0.39568]
[1760017721692,0.76732721,122880.0,122860.0,0.45413607]
[1760017721998,0.76828721,122880.0,122870.0,0.0334]
[1760017722296,0.76820721,122880.0,122870.0,0.0334]
[1760017722498,0.01012721,122880.0,122870.0,0.3942]
[1760017722795,0.01012721,122880.0,122870.0,0.74778654]
[1760017722993,0.00912721,122880.0,122870.0,0.74778654]
[1760017723199,0.01012721,122880.0,122870.0,0.74778654]
[1760017723797,0.00912721,122880.0,122870.0,0.74778654]
[1760017723995,0.01012721,122880.0,122870.0,0.74778654]
[1760017724995,0.002,122880.0,122870.0,1.20560654]
[1760017725193,0.002,122880.0,122870.0,1.14715047]
[1760017725395,0.002,122880.0,122870.0,1.22002941]
[1760017727199,0.002,122880.0,122870.0,1.97750941]
[1760017728399,0.0024746,122900.0,122890.0,0.03291]
[1760017728604,0.48897047,122910.0,122900.0,0.03291]
[1760017729202,0.49711086,122910.0,122900.0,0.03291]
[1760017729391,0.00814039,122910.0,122900.0,0.03291]
[1760017729591,0.65593047,122930.0,122920.0,0.03291]
[1760017729792,1.07367085,122930.0,122890.0,0.03291]
[1760017729996,1.07367085,122930.0,122880.0,0.45221606]
[1760017729997,0.29513047,122900.0,122880.0,0.45221606]
[1760017730298,0.29513047,122900.0,122890.0,0.03291]
[1760017730696,0.66728454,122910.0,122890.0,0.03291]
[1760017730901,0.66728454,122910.0,122900.0,0.03291]
[1760017731096,0.66728454,122910.0,122890.0,0.03291]
[1760017731296,0.65593047,122900.0,122890.0,0.03291]
[1760017731797,0.66628454,122910.0,122890.0,0.03291]
[1760017732001,0.66628454,122910.0,122900.0,0.03291]
[1760017732200,1.06220454,122910.0,122900.0,0.03291]
[1760017732598,0.01035407,122910.0,122900.0,0.39371]
[1760017732804,0.01035407,122910.0,122900.0,0.68884047]
[1760017733197,0.002,122910.0,122900.0,0.74246047]
[1760017733504,0.002,122910.0,122900.0,1.14246047]
[1760017733900,0.002,122910.0,122900.0,2.19431094]
[1760017734101,0.002,122910.0,122900.0,1.43759094]
[1760017734312,0.003,122910.0,122900.0,1.51892534]
[1760017734503,0.001,122910.0,122900.0,2.19447094]
[1760017734693,0.001,122910.0,122900.0,1.43759094]
[1760017735305,0.001,122910.0,122900.0,1.44582675]
[1760017735602,0.001,122910.0,122900.0,2.20286675]
[1760017735794,0.001,122910.0,122900.0,1.52716115]
[1760017735999,0.02983943,122950.0,122940.0,0.08653]
[1760017736303,0.02983943,122950.0,122940.0,1.10326047]
[1760017737305,0.03083943,122950.0,122940.0,1.10326047]
[1760017737502,0.03083943,122950.0,122940.0,0.75451]
[1760017737701,0.03083943,122950.0,122940.0,1.04964047]